Cogmind - Beta 15 @@@ ROGUE MODE // 2025.09.26 @ 06:00:26 Player: GermanMO Result: Destroyed by P-60 Hacker with Shock Rifle Performance ------------- Evolutions (4) 2000 Regions Visited (5) 1000 Robots Destroyed (18) 90 Value Destroyed (367) 367 Prototype IDs (1) 20 Alien Tech Used (0) 0 Bonus (0) 0 TOTAL SCORE: 3477 Bonus ------- None Cogmind --------- Core Integrity 0/850 Matter 3/300 Energy 98/100 System Corruption 8% Temperature Cool (0) Movement Core (50) Location -6/Factory Parts ------- > --- POWER (2) -------- (None) > --- PROPULSION (6) --- (None) > --- UTILITY (5) ------ Improved Signal Interpreter Terrain Scan Processor > --- WEAPON (2) ------- (None) > --- INVENTORY (5) ---- Light Angular Momentum Engine Advanced Signal Interpreter High-powered Shock Rifle Plasma Cutter Peak State ------------ > --- POWER ------------ Ion Engine > --- PROPULSION ------- Cesium-ion Thruster Cesium-ion Thruster Cesium-ion Thruster Cesium-ion Thruster > --- UTILITY ---------- Improved Terrain Scanner > --- WEAPON ----------- Assault Rifle > --- INVENTORY -------- Improved Terrain Scanner [Rating: 17] Favorites ----------- Power Ion Engine Engine Ion Engine Propulsion Cesium-ion Thruster Flight Unit Cesium-ion Thruster Utility Terrain Scan Processor Device Improved Terrain Scanner Processor Terrain Scan Processor Protection Improved Weapon Shielding Weapon Assault Rifle Energy Gun Small Laser Energy Cannon Proton Cannon Ballistic Gun Assault Rifle Ballistic Cannon Flak Cannon Launcher Mini Grenade Launcher Build | -11 -10 -9 -8 -7 -6 ------- Run | Yrd Mat Mat Mat Fac Fac Slots Evolved 8 | . . 2 2 2 2 Power 1 | . . . . 1 . Propulsion 4 | . . 2 1 . 1 Utility 3 | . . . 1 1 1 Weapon . | . . . . . . Parts Attached 23 | 1 2 9 2 6 3 Power 1 | . . 1 . . . Engine 1 | . . 1 . . . Core . | . . . . . . Reactor . | . . . . . . Propulsion 8 | . 1 6 . 1 . Treads . | . . . . . . Leg . | . . . . . . Wheel . | . . . . . . Hover . | . . . . . . Flight 8 | . 1 6 . 1 . Utility 7 | . 1 . 1 3 2 Device 4 | . 1 . . 2 1 Storage . | . . . . . . Processor 2 | . . . . 1 1 Hackware . | . . . . . . Protection 1 | . . . 1 . . Artifact . | . . . . . . Weapon 7 | 1 . 2 1 2 1 Energy Gun 1 | . . 1 . . . Energy Cannon 1 | . . . . . 1 Ballistic Gun 2 | 1 . 1 . . . Ballistic Cannon 1 | . . . . 1 . Launcher 2 | . . . 1 1 . Special Weapon . | . . . . . . Impact Weapon . | . . . . . . Slashing Weapon . | . . . . . . Piercing Weapon . | . . . . . . Special Melee Weapon . | . . . . . . Unidentified Prototypes 1 | . . . 1 . . Parts Lost 16 | . . 5 4 3 4 Power 1 | . . 1 . . . Propulsion 5 | . . 2 2 1 . Utility 5 | . . 1 1 1 2 Weapon 5 | . . 1 1 1 2 Highest Loss Streak 4 | . . 4 4 3 2 To Critical Strikes . | . . . . . . Average Backups 2 | . 1 1 2 2 3 Power . | . . . . . . Propulsion . | . . . . . . Utility . | . 1 1 1 . . Weapon . | . . . . . . Tool/Special . | . . . . . . Unused Backups 4 | . . . . . 4 Power 1 | . . . . . 1 Propulsion . | . . . . . . Utility 1 | . . . . . 1 Weapon 1 | . . . . . 1 Tool/Special 1 | . . . . . 1 Average Slot Usage (%) 27 | . 23 51 30 22 13 Engine 1 | . . 5 . . . Flight 8 | . 4 22 14 4 . Device 4 | . 4 11 . 4 1 Processor 4 | . . . . 6 9 Ballistic Gun 5 | . 14 11 7 . . Launcher 1 | . . . 2 4 1 Peak Build Rating 17 | 1 5 17 15 13 11 Average Rating 6 | . 2 9 9 7 5 On Entrance 2 | . 1 5 8 . 2 Naked Turns 29 | . . . 24 5 . Heaviest Build 11 | 2 3 11 11 8 9 Greatest Support 15 | 3 4 15 10 5 3 Greatest Overweight (x) 2 | . . 1 2 2 2 Average Overweight (x) . | . . . . . . Largest Inventory Capacity 5 | 5 5 5 5 5 5 Average Capacity 5 | 5 5 5 5 5 5 Most Carried 5 | 2 3 5 3 4 5 Average Carried 2 | 1 1 1 2 2 3 Final Capacity 5 | 5 5 5 5 5 5 Final Carried 4 | 2 1 1 3 3 4 Class Distribution -------------------- 80% | Mutant 19% | Sprinter Dominant Class ---------------- Mutant | -10/Materials Sprinter | -9/Materials Mutant | -8/Materials Mutant | -7/Factory Mutant | -6/Factory Resources | -11 -10 -9 -8 -7 -6 ----------- Run | Yrd Mat Mat Mat Fac Fac Matter Collected 385 | 297 . 32 54 2 . Remotely . | . . . . . . Salvage Created 633 | 261 . 279 93 . . Parts 49 | 19 . 22 8 . . Haulers Intercepted . | . . . . . . Recyclers Shooed 1 | 1 . . . . . Parts Field Recycled . | . . . . . . Retrieved Matter . | . . . . . . Parts Self-Destructed . | . . . . . . Prevented . | . . . . . . Kills | -11 -10 -9 -8 -7 -6 ------- Run | Yrd Mat Mat Mat Fac Fac Combat Hostiles Destroyed 9 | . . 8 1 . . Guns 9 | . . 8 1 . . Classes Destroyed 8 | 3 . 3 2 . . Worker 2 | 2 . . . . . Tunneler 5 | 5 . . . . . Recycler 1 | 1 . . . . . Watcher 1 | . . . 1 . . Swarmer 3 | . . 3 . . . Grunt 3 | . . 3 . . . Duelist 1 | . . . 1 . . Sentry 2 | . . 2 . . . Best Kill Streak 4 | 3 . 4 1 . . Combat Bots Only 4 | . . 4 1 . . Max Kills in Single Turn 1 | 1 . 1 1 . . Gunslinging . | . . . . . . Exploded . | . . . . . . Melee . | . . . . . . Uniques/NPCs Destroyed . | . . . . . . Combat | -11 -10 -9 -8 -7 -6 -------- Run | Yrd Mat Mat Mat Fac Fac Hostile Shots Fired 330 | . . 59 55 81 135 Missed 141 | . . 16 25 39 61 Hits 189 | . . 43 30 42 74 Melee 11 | . . 2 9 . . Projectile 178 | . . 41 21 42 74 AOE 3 | . . . 2 . 1 Critical Strikes 11 | . . 1 5 . 5 Damage Taken 2805 | . . 504 661 625 1015 Core 1818 | . . 197 398 373 850 Absorbed by Shields . | . . . . . . Redirected to Shielding 105 | . . . 105 . . Core Remaining (%) 64 | 100 100 50 27 46 . Volleys Fired 101 | 29 . 58 7 5 2 Largest 2 | 1 . 2 1 1 1 Hottest 75 | 20 . 60 36 30 75 Shots Fired 108 | 29 . 65 7 5 2 Gun 99 | 29 . 65 5 . . Cannon 2 | . . . . . 2 Launcher 7 | . . . 2 5 . Special . | . . . . . . Kinetic 93 | 29 . 59 5 . . Thermal 6 | . . 6 . . . Explosive 5 | . . . . 5 . Electromagnetic 4 | . . . 2 . 2 Robot Hit Streak 10 | 4 . 10 3 . 1 Robot Miss Streak 9 | 5 . 6 9 . 1 Penetration Max . | . . . . . . Secondary Targets . | . . . . . . Shots Hit Robots 57 | 16 . 37 3 . 1 Core Hits 27 | 8 . 14 4 . 1 Critical Kills . | . . . . . . Critical Parts Destroyed 1 | 1 . . . . . Critical Strikes 1 | 1 . . . . . Destroy 1 | 1 . . . . . Melee Attacks . | . . . . . . Impact . | . . . . . . Slashing . | . . . . . . Piercing . | . . . . . . Sneak Attacks . | . . . . . . Combat Hostiles . | . . . . . . Follow-up Attacks . | . . . . . . Damage Inflicted 909 | 207 . 480 140 28 54 Guns 726 | 207 . 480 39 . . Cannons 6 | . . . . . 6 Explosions 111 | . . . 83 28 . Melee . | . . . . . . Ramming 66 | . . . 18 . 48 Kinetic 674 | 207 . 428 39 . . Thermal 52 | . . 52 . . . Explosive 28 | . . . . 28 . Electromagnetic 89 | . . . 83 . 6 Impact . | . . . . . . Slashing . | . . . . . . Piercing . | . . . . . . Highest Corruption 8 | . . . . 1 8 Average Corruption 3 | . . . . 1 5 Corruption Purged . | . . . . . . Corruption Blocked . | . . . . . . Effects 8 | . . . . . 8 Message Errors 1 | . . . . . 1 Matter Fused 3 | . . . . . 3 Heat Flow Errors 2 | . . . . . 2 Data Loss (minor) 1 | . . . . . 1 Data Loss (major) 1 | . . . . . 1 Overload Shots . | . . . . . . Overflow Damage . | . . . . . . Projectiles . | . . . . . . Explosions . | . . . . . . Melee . | . . . . . . Knockbacks 1 | . . . . . 1 Impact 1 | . . . . . 1 Kinetic . | . . . . . . Secondary . | . . . . . . Self-Inflicted Damage 160 | . . . 85 55 20 Shots 6 | . . . 3 3 . Rammed 18 | . . . 3 . 15 Targets Rammed 18 | . . . 3 . 15 Kicked . | . . . . . . Crushed . | . . . . . . Highest Temperature 211 | . . 27 5 . 211 Average Temperature 49 | . . 15 3 . 112 Received Heat Transfer 459 | . . 153 171 42 93 Siege Activations . | . . . . . . Martial Activations . | . . . . . . Shielding Activations . | . . . . . . Robots Disrupted . | . . . . . . Combat Hostiles . | . . . . . . Robots Corrupted . | . . . . . . Combat Hostiles . | . . . . . . Parts Fried . | . . . . . . Impact Corruptions . | . . . . . . Robots Melted . | . . . . . . Combat Hostiles . | . . . . . . Parts Melted . | . . . . . . Heat Transferred 125 | . . 125 . . . Parts Sabotaged . | . . . . . . Parts Stolen . | . . . . . . Parts Stripped . | . . . . . . Power Chain Reactions 1 | . . . 1 . . Alert | -11 -10 -9 -8 -7 -6 ------- Run | Yrd Mat Mat Mat Fac Fac Maximum Alert Level 1 | . . . . 1 . Low Security (%) 96 | 100 100 100 100 80 100 Level 1 3 | . . . . 19 . Level 2 . | . . . . . . Level 3 . | . . . . . . Level 4 . | . . . . . . Level 5 . | . . . . . . High Security . | . . . . . . Max Security . | . . . . . . Peak Influence 248 | 10 15 165 147 248 126 Initial 111 | . . . 50 66 111 Average 62 | 1 3 82 95 113 46 Influence Increases 950 | 40 15 281 217 292 105 Destroy 0b10 Robot/C 180 | . . 160 20 . . Destroy 0b10 Robot/NC 45 | 40 . . 5 . . Destroy Leader 42 | . . 30 12 . . Disable Machine 45 | . . . 15 30 . Destroy Structure 38 | . . 1 . 37 . Partial Spotted 135 | . 15 60 15 15 30 Lose Combat Pursuer 465 | . . 30 150 210 75 Influence Decreases 930 | 40 15 160 191 211 313 Entered New Map 269 | . . . 71 81 117 Time Decay 501 | 40 15 110 80 100 156 Lost Part 160 | . . 50 40 30 40 Squads Dispatched 7 | . . . 4 1 2 Investigation 1 | . . . . 1 . Extermination 1 | . . . . . 1 Reinforcement 5 | . . . 4 . 1 Assault . | . . . . . . Garrison . | . . . . . . Intercept . | . . . . . . Searches Triggered . | . . . . . . Construction Impeded . | . . . . . . Haulers Reinforced . | . . . . . . Active Scanning Responses . | . . . . . . Cargo Convoy Interrupts . | . . . . . . Stealth | -11 -10 -9 -8 -7 -6 --------- Run | Yrd Mat Mat Mat Fac Fac Distress Signals 4 | . . . 2 . 2 Communications Jammed . | . . . . . . Distress Signals . | . . . . . . Times Spotted 70 | . 1 14 25 15 15 Peak Tracking Total 13 | . 1 4 13 10 5 Tactical Retreats 14 | . . 1 5 4 4 Traps | -11 -10 -9 -8 -7 -6 ------- Run | Yrd Mat Mat Mat Fac Fac Traps Triggered 1 | . . . . . 1 Indirectly . | . . . . . . Trap Hack Attempts . | . . . . . . Triggered . | . . . . . . Disarmed . | . . . . . . Reprogrammed . | . . . . . . Reused . | . . . . . . Traps Extracted . | . . . . . . Installed . | . . . . . . Triggered . | . . . . . . Machines | -11 -10 -9 -8 -7 -6 ---------- Run | Yrd Mat Mat Mat Fac Fac Machines Disabled 3 | . . . 1 2 . Max in Single Turn 1 | . . . 1 1 . Machines Repaired . | . . . . . . Machines Dismantled . | . . . . . . Machines Sabotaged . | . . . . . . Overloaded Fab Kills . | . . . . . . Hacking | -11 -10 -9 -8 -7 -6 --------- Run | Yrd Mat Mat Mat Fac Fac Machines Accessed 3 | . 1 . . 1 1 Terminals 2 | . 1 . . . 1 Fabricators . | . . . . . . Repair Stations . | . . . . . . Recycling Units . | . . . . . . Scanalyzers 1 | . . . . 1 . Garrison Access . | . . . . . . Total Hacks 8 | . 2 . . 3 3 Successful 4 | . . . . 2 2 Failed 4 | . 2 . . 1 1 Catastrophic . | . . . . . . Database Lockouts . | . . . . . . Manual . | . . . . . . Terminals 5 | . 2 . . . 3 Fabricators . | . . . . . . Repair Stations . | . . . . . . Recycling Units . | . . . . . . Scanalyzers 3 | . . . . 3 . Garrison Access . | . . . . . . Terminal Hacks 2 | . . . . . 2 Record 2 | . . . . . 2 Fabricator Hacks . | . . . . . . Repair Station Hacks . | . . . . . . Recycling Unit Hacks . | . . . . . . Scanalyzer 2 | . . . . 2 . Insert Component 1 | . . . . 1 . Analyze 1 | . . . . 1 . Garrison Access Hacks . | . . . . . . Unauthorized Hacks . | . . . . . . Terminals . | . . . . . . Fabricators . | . . . . . . Repair Stations . | . . . . . . Recycling Units . | . . . . . . Scanalyzers . | . . . . . . Garrison Access . | . . . . . . Data Cores Recovered . | . . . . . . Used . | . . . . . . Hacking Detections 3 | . 1 . . 1 1 Full Trace Events 1 | . . . . 1 . Feedback Events 1 | . . . . 1 . Corruption 1 | . . . . 1 . Feedback Blocked . | . . . . . . Robot Schematics Acquired . | . . . . . . Robots Built . | . . . . . . Authchips . | . . . . . . Time . | . . . . . . Total Robot Build Rating . | . . . . . . Part Schematics Acquired 1 | . . . . 1 . Parts Built . | . . . . . . Authchips . | . . . . . . Time . | . . . . . . Total Part Build Rating . | . . . . . . Parts Repaired . | . . . . . . Time . | . . . . . . Parts Recycled . | . . . . . . Recycled Matter . | . . . . . . Retrieved Matter . | . . . . . . Retrieved Components . | . . . . . . Parts Scanalyzed 1 | . . . . 1 . Part Schematics Acquired 1 | . . . . 1 . Parts Damaged . | . . . . . . Bothacking | -11 -10 -9 -8 -7 -6 ------------ Run | Yrd Mat Mat Mat Fac Fac Used RIF Installer . | . . . . . . Robots Hacked . | . . . . . . Non-combat . | . . . . . . Combat . | . . . . . . Robot Hacks Applied . | . . . . . . Relay Couplers Released . | . . . . . . Fabnet Peak Effective % . | . . . . . . Robots Rewired . | . . . . . . Allies Hacked . | . . . . . . Hacks Repelled . | . . . . . . Allies | -11 -10 -9 -8 -7 -6 -------- Run | Yrd Mat Mat Mat Fac Fac Total Allies . | . . . . . . Largest Group . | . . . . . . Highest-Rated Group . | . . . . . . Highest-Rated Ally . | . . . . . . Total Orders . | . . . . . . Ally Attacks . | . . . . . . Total Damage . | . . . . . . Kills . | . . . . . . Allies Corrupted . | . . . . . . Allies Melted . | . . . . . . Intel | -11 -10 -9 -8 -7 -6 ------- Run | Yrd Mat Mat Mat Fac Fac Active Infowar (turns) 491 | . 39 260 . 137 55 Sensors 144 | . . . . 89 55 Terrain 369 | . 39 260 . 48 22 Robot Analysis Total . | . . . . . . Derelict Logs Recovered . | . . . . . . Drone Launches . | . . . . . . Drone Recoveries . | . . . . . . Exploration | -11 -10 -9 -8 -7 -6 ------------- Run | Yrd Mat Mat Mat Fac Fac Turns Passed 1254 | 157 102 260 169 203 363 Spaces Moved 1912 | 76 180 295 347 394 620 Core 956 | 76 120 . 43 97 620 Treads . | . . . . . . Legs . | . . . . . . Wheels . | . . . . . . Hover . | . . . . . . Flight 956 | . 60 295 304 297 . Fastest Speed 29 | 50 40 29 32 35 50 Average Speed 44 | 50 46 35 40 42 51 Slowest Speed 195 | 50 50 112 195 150 150 Overloaded Moves . | . . . . . . Propulsion Burnouts . | . . . . . . Robots Hopped 4 | . . 3 1 . . Potential Cave-ins . | . . . . . . Cave-ins Triggered . | . . . . . . Exploration Rate (%) 25 | 3 36 35 44 12 20 Regions Visited 5 Branch Regions . Pre-discovered Areas . | . . . . . . Known Exits Taken . | . . . . . . Unknown Exits Taken 5 | 1 1 1 1 1 . Scrap Searched . | . . . . . . Spaces Dug 36 | . . . . 36 . Terrain Destroyed 43 | . . . . 43 . Melee . | . . . . . . Projectile . | . . . . . . AOE 43 | . . . . 43 . Terrain Rammed . | . . . . . . Walls Destroyed . | . . . . . . Machines Disabled . | . . . . . . Actions | -11 -10 -9 -8 -7 -6 --------- Run | Yrd Mat Mat Mat Fac Fac Total 2193 | 165 197 383 366 423 659 Wait 109 | 57 15 12 5 13 7 Move 1899 | 75 179 288 344 393 620 Hop 4 | . . 3 1 . . Pick Up 29 | 3 1 9 4 4 8 Fast Attach . | . . . . . . Attach 27 | 1 2 9 2 6 7 Detach 2 | . . . . 2 . Swap . | . . . . . . Drop 4 | . . 4 . . . Fire 101 | 29 . 58 7 5 2 Melee . | . . . . . . Ram 18 | . . . 3 . 15 Kick . | . . . . . . Crush . | . . . . . . Escape Stasis . | . . . . . . Rewire . | . . . . . . Trap . | . . . . . . Miscellaneous . | . . . . . . Route ------- -11/Scrapyard -10/Materials -9/Materials -8/Materials -7/Factory -6/Factory History --------- Turn | Location | Event 3 | -11/Scrapyard | Discovered new exit (range 16) 158 | -11/Scrapyard | Entered Materials 248 | -10/Materials | Discovered new exit (range 4) 260 | -10/Materials | Entered another Materials area 260 | -9/Materials | Evolved 2 slots: Propulsion x2 318 | -9/Materials | Build established: Mutant 515 | -9/Materials | Discovered new exit (range 16) 520 | -9/Materials | Entered another Materials area 520 | -8/Materials | Evolved 2 slots: Propulsion x1, Utility x1 551 | -8/Materials | Lost 4 parts (1p1n1u1w) 683 | -8/Materials | Discovered new exit (range 14) 684 | -8/Materials | Core integrity fell below 50% 689 | -8/Materials | Entered Factory 689 | -7/Factory | Evolved 2 slots: Power x1, Utility x1 696 | -7/Factory | Lost 4 parts (2n1u1w) 882 | -7/Factory | Discovered new exit (range 15) 892 | -7/Factory | Core integrity fell below 50% 892 | -7/Factory | Entered another Factory area 892 | -6/Factory | Evolved 2 slots: Propulsion x1, Utility x1 917 | -6/Factory | Lost 3 parts (1n1u1w) 1126 | -6/Factory | Core integrity fell below 50% 1151 | -6/Factory | Core integrity fell below 20% 1255 | -6/Factory | Destroyed by P-60 Hacker with Shock Rifle Last Messages --------------- Imp. Sensor Array severed. Acquired Imp. Terrain Scanner. Acquired Imp. Sensor Array. Imp. Terrain Scanner destroyed. Slug penetrates Wall. ALERT: Hostiles spotted, dispatching reinforcements to Terminal F011. System corrupted: Matter fused (-10). Imp. Sensor Array destroyed. System corrupted: Heat flow error (+235). System corrupted: Component data lost. System corrupted: Matter fused (-7). Acquired Adv. Signal Interpreter. 5SOBP3B%3GMMYFE6GQNNL%|HAYDYP ALERT: Potential suspicious activity detected, Programmers report to Factory Zone 2G. Acquired Hpw. Shock Rifle. System corrupted: Substantial component data lost. Construction Platform disabled. Map ----- +----------------------------------------------------+ | # #????????????# """" """????????????? | | +????????????# """" ""?????????????? | | # #????????????# """" ""?????????????? | | ???????????????????# ??????????? | | ???????????????????# """" """" """????????????? | | ???????????????????### """" """" """????????????? | | ?????????????????????# """" """" """" ?????????? | | ?????????????????????+ ????????? | | ?????????????????????# ! ! """" """"???????????? | | ?????????????????????# ![! """" """" ??????????? | | ?????????????????????# !!! """" """" """" ?????? | | ?????????????????????# ????? | | ###??????????????????# ! ????? | | #??????????????????###### ????? | | #????????????????????######+#+######### ????? | | +????????????????????# #????????????? | | #????????????????????# #????????????? | | #????????????????????# """"""" #????????????? | | ###????????????????????# """"""" #????????H???? | | ???????????????????????# """"""" #????????????? | | ???????????????????????# """"""" #????????????? | | ???????????????????????# #????????????? | | ???????????????????????# """"""" #????????????? | | ???????????????????????# """"""" #????????????? | | ???????????????????????# p""""""" #????????????? | | ???????????????????????# @ """""" #????????????? | | ???????????????????????# #????????????? | | ???????????????????????##############????????????? | | ?????????????????????????????????????????????????? | | ?????????????????????????????????????????????????? | | ?????????????????????????????????????????????????? | | ?????????????????????????????????????????????????? | | ?????????????????????????????????????????????????? | | ?????????????????????????????????????????????????? | | ?????????????????????????????????????????????????? | | ?????????????????????????????????????????????????? | | ?????????????????????????????????????????????????? | | ?????????????????????????????????????????????????? | | ?????????????????????????????????????????????????? | | ?????????????????????????????????????????????????? | | ?????????????????????????????????????????????????? | | ?????????????????????????????????????????????????? | | ?????????????????????????????????????????????????? | | ?????????????????????????????????????????????????? | | ?????????????????????????????????????????????????? | | ?????????????????????????????????????????????????? | | ?????????????????????????????????????????????????? | | ?????????????????????????????????????????????????? | | ?????????????????????????????????????????????????? | | ?????????????????????????????????????????????????? | +----------------------------------------------------+ Best States ------------- Heat Dissipation 37 Energy Generation 10 Energy Capacity 250 Matter Stores 300 Matter Capacity 300 Sight Range 16 Robot Scan Range 15 Terrain Scan Range 16 Terrain Scan Density 85 Weapon Shielding 66 Evasion (%) 64 Item Schematics ----------------- Imp. Terrain Scanner | -7/Factory | Scanalyzed Robot Schematics ------------------ None Fabricated ------------ Nothing Repaired ---------- Nothing Alien Tech Used ----------------- None Achievements -------------- None Challenges ------------ None Game ------ Seed SuspensionReactiveReactor Manual? 0 Play Time 00:36:21 Cumulative 27.2 hours Start 2025.09.25 @ 11:15:19 End 2025.09.26 @ 06:00:26 Sessions 3 Manual Loads 0 Difficulty Rogue Special Mode None Game No. 38 Rogue 11 Adventurer 0 Explorer 27 Win Type - Total 0 Types 0/0/0/0/0/0/0/0/0/0 Lore% 18 Gallery% 32 Achievement% 25 Wizard Run 0 Options --------- Layout 2 ASCII 0 Keyboard 0 Movement Mouse Keybinds 0 Fullscreen 2 Font 16/SmallcapsGlow Map View 50x44 Zoom Use 0% Tactical HUD 0 Map Filters NONE Filters NONE Steam X RUN: 02da2487-232f-4095-a4f3-e70c995010dc